Cogmind - Beta 12 X1 @@@ ROGUE MODE // 2022.07.30 @ 11:34:52 Player: Exp. Geonium Core Result: Destroyed by G-47 Trooper with Particle Gun Performance ------------- Evolutions (3) 1500 Regions Visited (12) 2400 Robots Destroyed (34) 170 Value Destroyed (1374) 1374 Prototype IDs (25) 500 Alien Tech Used (0) 0 Bonus (2131) 2131 TOTAL SCORE: 8075 Bonus ------- Follower Combat Kills 231 Entered Garrisons 600 Used RIF Installer 1000 Aligned with FarCom 300 Cogmind --------- Core Integrity 0/700 Matter 199/300 Energy 99/100 System Corruption 0% Temperature Cool (12) Movement Flying (32) Location -7/Garrison Parts ------- > --- POWER (1) -------- (None) > --- PROPULSION (2) --- Cooled VTOL Module > --- UTILITY (8) ------ Targeting Computer Advanced Targeting Computer Relay Coupler [NC] (32) Relay Coupler [NC] (28) Relay Coupler [Grunt] (37) Relay Coupler [Sentry] (31) Relay Coupler [Specialist] (25) > --- WEAPON (2) ------- Great Maul > --- INVENTORY (5) ---- Relay Coupler [NC] (36) Relay Coupler [NC] (37) Relay Coupler [Swarmer] (37) Autogun Peak State ------------ > --- POWER ------------ Fission Core > --- PROPULSION ------- Aluminum Leg Carbon-fiber Leg > --- UTILITY ---------- Small Storage Unit Targeting Computer Advanced Targeting Computer Hacking Suite Relay Coupler [Grunt] Relay Coupler [Sentry] Relay Coupler [Sentry] Relay Coupler [Specialist] > --- WEAPON ----------- Improved Datajack Great Maul > --- INVENTORY -------- Relay Coupler [NC] Relay Coupler [NC] Relay Coupler [Swarmer] Relay Coupler [Grunt] Autogun Autogun [Rating: 40] Favorites ----------- Power Fission Core Engine Ion Engine Power Core Fission Core Propulsion Aluminum Leg Treads Light Treads Leg Aluminum Leg Flight Unit Flight Unit Utility Targeting Computer Device Improved Heat Sink Storage Small Storage Unit Processor Targeting Computer Hackware Relay Coupler [Grunt] Protection Improved Light Armor Plating Weapon Great Maul Energy Gun Small Laser Ballistic Gun Autogun Launcher Grenade Launcher Impact Weapon Great Maul Slashing Weapon Scythe Special Melee Weapon Improved Datajack Build | -11 -10 -10 -9 -9 -9 -8 -8 -8 -7 -7 -7 -7 ------- Run | Scr Mat Min Mat Min Exi Min Mat Gar Fac Gar Fac Gar Slots Evolved 6 | . . . 2 . . . 2 . 2 . . . Power . | . . . . . . . . . . . . . Propulsion . | . . . . . . . . . . . . . Utility 6 | . . . 2 . . . 2 . 2 . . . Weapon . | . . . . . . . . . . . . . Parts Attached 74 | . 2 2 4 1 1 . 3 10 6 30 12 3 Power 2 | . . . . . . . . . . 1 1 . Engine . | . . . . . . . . . . . . . Core 2 | . . . . . . . . . . 1 1 . Reactor . | . . . . . . . . . . . . . Propulsion 20 | . . . 3 . . . 1 3 . 6 6 1 Treads 1 | . . . . . . . . . . 1 . . Leg 10 | . . . . . . . . 1 . 4 5 . Wheel . | . . . . . . . . . . . . . Hover . | . . . . . . . . . . . . . Flight 9 | . . . 3 . . . 1 2 . 1 1 1 Utility 24 | . . . . 1 1 . 1 1 5 12 1 2 Device 2 | . . . . . . . . . 1 1 . . Storage 2 | . . . . . . . . . 1 1 . . Processor 7 | . . . . 1 1 . 1 1 2 1 . . Hackware 12 | . . . . . . . . . 1 9 . 2 Protection 1 | . . . . . . . . . . . 1 . Artifact . | . . . . . . . . . . . . . Weapon 28 | . 2 2 1 . . . 1 6 1 11 4 . Energy Gun . | . . . . . . . . . . . . . Energy Cannon . | . . . . . . . . . . . . . Ballistic Gun 16 | . 1 1 1 . . . . 4 1 5 3 . Ballistic Cannon . | . . . . . . . . . . . . . Launcher 3 | . 1 1 . . . . 1 . . . . . Special Weapon . | . . . . . . . . . . . . . Impact Weapon 2 | . . . . . . . . . . 1 1 . Slashing Weapon 4 | . . . . . . . . 2 . 2 . . Piercing Weapon . | . . . . . . . . . . . . . Special Melee Weapon 3 | . . . . . . . . . . 3 . . Unidentified Prototypes 2 | . . . . . . . . . 1 . 1 . Parts Lost 27 | . . . 2 1 . . 2 3 . 12 7 . Power 2 | . . . . . . . . . . . 2 . Propulsion 8 | . . . 1 1 . . 1 . . 3 2 . Utility 7 | . . . . . . . . 1 . 4 2 . Weapon 10 | . . . 1 . . . 1 2 . 5 1 . Highest Loss Streak 10 | . . . 1 1 . . 2 3 . 10 5 . To Critical Strikes 1 | . . . . . . . . . . 1 . . Average Slot Usage (%) 75 | . 85 85 57 48 48 55 39 49 62 86 94 72 Engine 1 | . 14 14 11 6 . . . . . . . . Core 1 | . . . . . . . . . . 1 5 . Leg 10 | . 28 28 15 . . . . 1 . 12 14 3 Flight 4 | . . . 6 17 11 11 8 13 15 . . 5 Storage 4 | . 14 14 8 . . . . . 1 5 7 1 Processor 17 | . . . . 2 15 22 23 25 33 20 15 15 Hackware 19 | . . . . . . . . . 2 27 36 34 Ballistic Gun 6 | . 14 14 13 22 22 22 3 1 . 4 6 1 Impact Weapon 2 | . . . . . . . . . . 2 4 7 Slashing Weapon 1 | . . . . . . . . 7 7 3 . . Naked Turns . | . . . . . . . . . . . . . Heaviest Build 21 | 12 13 13 12 8 3 3 3 6 7 21 19 15 Greatest Support 40 | 20 20 20 20 8 4 4 4 15 8 25 40 20 Greatest Overweight (x) 3 | . . . . . . . . . . 3 . . Average Overweight (x) . | . . . . . . . . . . . . . Largest Inventory Capacity 8 | . 8 8 8 5 5 5 5 5 8 8 8 8 Average Capacity 6 | . 8 8 7 5 5 5 5 5 5 7 8 5 Most Carried 8 | . 7 7 8 3 3 3 5 5 5 8 8 6 Average Carried 5 | . 6 7 6 3 3 3 4 4 4 6 6 4 Final Capacity 8 | 8 8 8 5 5 5 5 5 5 8 8 8 5 Final Carried 7 | 6 7 7 3 3 3 3 5 5 5 7 6 4 Class Distribution -------------------- 47% | Mutant 27% | Scavenger-Mutant 24% | Bothacker-Mutant Dominant Class ---------------- Mutant | -10/Materials Mutant | -10/Mines Mutant | -9/Materials Mutant | -9/Mines Mutant | -9/Exiles Mutant | -8/Mines Mutant | -8/Materials Mutant | -8/Garrison Mutant | -7/Factory Bothacker-Mutant | -7/Garrison Scavenger-Mutant | -7/Factory Mutant | -7/Garrison Resources | -11 -10 -10 -9 -9 -9 -8 -8 -8 -7 -7 -7 -7 ----------- Run | Scr Mat Min Mat Min Exi Min Mat Gar Fac Gar Fac Gar Matter Collected 1113 | 200 . 16 31 62 . . 17 212 64 388 123 . Remotely . | . . . . . . . . . . . . . Salvage Created 960 | . 76 51 48 . . . 71 101 . 291 322 . Parts 48 | . 6 3 5 . . . 5 9 . 16 4 . Haulers Intercepted 1 | . . . . . . . . . . . 1 . Recyclers Shooed . | . . . . . . . . . . . . . Parts Field Recycled . | . . . . . . . . . . . . . Retrieved Matter . | . . . . . . . . . . . . . Parts Self-Destructed . | . . . . . . . . . . . . . Prevented . | . . . . . . . . . . . . . Kills | -11 -10 -10 -9 -9 -9 -8 -8 -8 -7 -7 -7 -7 ------- Run | Scr Mat Min Mat Min Exi Min Mat Gar Fac Gar Fac Gar Combat Hostiles Destroyed 26 | . 3 2 3 . . . 4 4 . 7 3 . Melee 3 | . . . . . . . . . . 1 2 . Guns 14 | . . . 3 . . . . 4 . 6 1 . AOE 9 | . 3 2 . . . . 4 . . . . . Classes Destroyed 9 | . 2 1 . . . . 1 1 . . 4 . Worker 2 | . . . . . . . . . . . 2 . Builder 1 | . . . . . . . . . . . 1 . Hauler 1 | . . . . . . . . . . . 1 . Recycler 3 | . 1 . . . . . 1 . . . 1 . Watcher 1 | . . . . . . . 1 . . . . . Swarmer 15 | . 3 . 3 . . . 4 3 . 2 . . Grunt 8 | . . 2 . . . . . . . 5 1 . Duelist 2 | . . . . . . . . . . . 2 . Hunter 1 | . . . . . . . . 1 . . . . Best Kill Streak 6 | . 4 2 2 . . . 6 4 . 4 2 . Combat Bots Only 4 | . 3 2 2 . . . 4 4 . 4 1 . Max Kills in Single Turn 4 | . 4 1 1 . . . 2 1 . 1 1 . Gunslinging . | . . . . . . . . . . . . . Exploded 3 | . 3 1 . . . . 2 . . . . . Melee 1 | . . . . . . . . . . 1 1 . Uniques/NPCs Destroyed . | . . . . . . . . . . . . . Combat | -11 -10 -10 -9 -9 -9 -8 -8 -8 -7 -7 -7 -7 -------- Run | Scr Mat Min Mat Min Exi Min Mat Gar Fac Gar Fac Gar Damage Taken 3548 | . 14 100 138 10 . . 415 441 . 1505 849 76 Core 1261 | . 7 21 38 . . . 318 177 . 509 146 45 Absorbed by Shields 48 | . . . . . . . . 4 . 44 . . Core Remaining (%) 72 | 100 . 88 . . . 90 . 10 . . . . Volleys Fired 74 | . 2 3 16 . . . 7 10 . 23 13 . Largest 2 | . 2 1 2 . . . 1 2 . 2 2 . Hottest 60 | . 60 30 60 . . . 30 48 . 48 46 . Shots Fired 107 | . 3 3 19 . . . 7 16 . 33 26 . Gun 96 | . 2 . 19 . . . . 16 . 33 26 . Cannon . | . . . . . . . . . . . . . Launcher 11 | . 1 3 . . . . 7 . . . . . Special . | . . . . . . . . . . . . . Kinetic 92 | . 1 . 16 . . . . 16 . 33 26 . Thermal 4 | . 1 . 3 . . . . . . . . . Explosive 11 | . 1 3 . . . . 7 . . . . . Electromagnetic . | . . . . . . . . . . . . . Robot Hit Streak 18 | . . 3 8 . . . 6 8 . 10 18 . Robot Miss Streak 2 | . . . 2 . . . . 1 . 2 1 . Penetration Max . | . . . . . . . . . . . . . Secondary Targets 2 | . . . 1 . . . . . . 1 . . Max Gunslinging Chain 1 | . . . 1 . . . . . . 1 . . Shots Hit Robots 109 | . . 3 12 . . . 5 12 . 44 33 . Core Hits 52 | . 4 4 5 . . . 9 7 . 13 10 . Critical Kills 1 | . . . . . . . . . . 1 . . Critical Parts Destroyed 3 | . . . . . . . . . . 2 1 . Critical Strikes 4 | . . . . . . . . . . 3 1 . Destroy 1 | . . . . . . . . . . 1 . . Smash 3 | . . . . . . . . . . 2 1 . Melee Attacks 68 | . . . . . . . . 18 3 36 9 2 Impact 21 | . . . . . . . . . . 10 9 2 Slashing 32 | . . . . . . . . 18 3 11 . . Piercing . | . . . . . . . . . . . . . Sneak Attacks 9 | . . . . . . . . . . 5 4 . Combat Hostiles . | . . . . . . . . . . . . . Follow-up Attacks . | . . . . . . . . . . . . . Damage Inflicted 2687 | . 132 168 107 . . . 458 144 . 625 1053 . Guns 1012 | . . . 107 . . . . 144 . 402 359 . Cannons . | . . . . . . . . . . . . . Explosions 758 | . 132 168 . . . . 458 . . . . . Melee 914 | . . . . . . . . . . 223 691 . Ramming 3 | . . . . . . . . . . . 3 . Kinetic 976 | . . . 71 . . . . 144 . 402 359 . Thermal 36 | . . . 36 . . . . . . . . . Explosive 758 | . 132 168 . . . . 458 . . . . . Electromagnetic . | . . . . . . . . . . . . . Impact 851 | . . . . . . . . . . 160 691 . Slashing 63 | . . . . . . . . . . 63 . . Piercing . | . . . . . . . . . . . . . Highest Corruption . | . . . . . . . . . . . . . Average Corruption . | . . . . . . . . . . . . . Corruption Purged . | . . . . . . . . . . . . . Corruption Blocked . | . . . . . . . . . . . . . Overload Shots . | . . . . . . . . . . . . . Overflow Damage 445 | . . . . . . . . . . 34 411 . Projectiles 38 | . . . . . . . . . . . 38 . Explosions . | . . . . . . . . . . . . . Melee 407 | . . . . . . . . . . 34 373 . Knockbacks 4 | . . . . . . . . . . . 4 . Impact 3 | . . . . . . . . . . . 3 . Kinetic . | . . . . . . . . . . . . . Secondary 1 | . . . . . . . . . . . 1 . Self-Inflicted Damage 96 | . 1 50 . . . . 45 . . . . . Shots 7 | . 1 3 . . . . 3 . . . . . Rammed . | . . . . . . . . . . . . . Targets Rammed 2 | . . . 1 . . . . . . . 1 . Kicked 2 | . . . 1 . . . . . . . 1 . Crushed . | . . . . . . . . . . . . . Highest Temperature 28 | . 20 22 28 . . . 23 . . 25 14 8 Average Temperature 12 | . 15 15 15 . . . 23 . . 9 7 8 Received Heat Transfer 1177 | . . 51 . 6 . . 198 15 . 697 165 45 Siege Activations . | . . . . . . . . . . . . . Robots Corrupted . | . . . . . . . . . . . . . Combat Hostiles . | . . . . . . . . . . . . . Parts Fried 7 | . . . . . . . . . . . 7 . Impact Corruptions 11 | . . . . . . . . . . 1 10 . Robots Melted . | . . . . . . . . . . . . . Combat Hostiles . | . . . . . . . . . . . . . Parts Melted . | . . . . . . . . . . . . . Heat Transferred 75 | . . . 75 . . . . . . . . . Parts Sabotaged . | . . . . . . . . . . . . . Parts Stolen . | . . . . . . . . . . . . . Parts Stripped . | . . . . . . . . . . . . . Power Chain Reactions . | . . . . . . . . . . . . . Missiles Intercepted . | . . . . . . . . . . . . . Alert | -11 -10 -10 -9 -9 -9 -8 -8 -8 -7 -7 -7 -7 ------- Run | Scr Mat Min Mat Min Exi Min Mat Gar Fac Gar Fac Gar Peak Influence 458 | . 128 150 165 64 . . 458 425 285 438 326 138 Initial 297 | . . 49 58 64 . . . 297 222 199 220 128 Average 233 | . 28 138 114 59 . . 137 358 249 335 211 131 Maximum Alert Level 2 | . . . . . . . 2 2 1 2 1 . Low Security (%) 37 | . 100 100 100 100 . 100 75 . . 2 41 100 Level 1 59 | . . . . . . . 17 86 100 92 58 . Level 2 3 | . . . . . . . 6 13 . 4 . . Level 3 . | . . . . . . . . . . . . . Level 4 . | . . . . . . . . . . . . . Level 5 . | . . . . . . . . . . . . . High Security . | . . . . . . . . . . . . . Max Security . | . . . . . . . . . . . . . Squads Dispatched 4 | . 1 . 1 . . . 2 . . . . . Investigation . | . . . . . . . . . . . . . Extermination . | . . . . . . . . . . . . . Reinforcement 4 | . 1 . 1 . . . 2 . . . . . Assault . | . . . . . . . . . . . . . Garrison . | . . . . . . . . . . . . . Intercept . | . . . . . . . . . . . . . Searches Triggered . | . . . . . . . . . . . . . Construction Impeded . | . . . . . . . . . . . . . Haulers Reinforced . | . . . . . . . . . . . . . Active Scanning Responses . | . . . . . . . . . . . . . Cargo Convoy Interrupts . | . . . . . . . . . . . . . Stealth | -11 -10 -10 -9 -9 -9 -8 -8 -8 -7 -7 -7 -7 --------- Run | Scr Mat Min Mat Min Exi Min Mat Gar Fac Gar Fac Gar Distress Signals 4 | . . . 1 . . . 3 . . . . . Communications Jammed . | . . . . . . . . . . . . . Distress Signals . | . . . . . . . . . . . . . Times Spotted 110 | . 4 2 8 2 . 3 30 8 3 25 11 14 Peak Tracking Total 17 | . 3 2 4 2 . 3 16 5 3 12 5 17 Tactical Retreats 7 | . . . 2 . . . 3 . . . 2 . Traps | -11 -10 -10 -9 -9 -9 -8 -8 -8 -7 -7 -7 -7 ------- Run | Scr Mat Min Mat Min Exi Min Mat Gar Fac Gar Fac Gar Traps Triggered 7 | . . . . . . . . 3 . 3 1 . Indirectly . | . . . . . . . . . . . . . Trap Hack Attempts . | . . . . . . . . . . . . . Triggered . | . . . . . . . . . . . . . Disarmed . | . . . . . . . . . . . . . Reprogrammed . | . . . . . . . . . . . . . Reused . | . . . . . . . . . . . . . Traps Extracted . | . . . . . . . . . . . . . Installed . | . . . . . . . . . . . . . Triggered . | . . . . . . . . . . . . . Machines | -11 -10 -10 -9 -9 -9 -8 -8 -8 -7 -7 -7 -7 ---------- Run | Scr Mat Min Mat Min Exi Min Mat Gar Fac Gar Fac Gar Machines Disabled 5 | . 1 . . . . . 1 . . 3 . . Max in Single Turn 1 | . 1 . . . . . 1 . . 1 . . Garrison Relay 3 | . . . . . . . . . . 3 . . Machines Sabotaged . | . . . . . . . . . . . . . Garrisons Compromised . | . . . . . . . . . . . . . Overloaded Fab Kills . | . . . . . . . . . . . . . Hacking | -11 -10 -10 -9 -9 -9 -8 -8 -8 -7 -7 -7 -7 --------- Run | Scr Mat Min Mat Min Exi Min Mat Gar Fac Gar Fac Gar Machines Accessed 18 | . 1 . 1 . 1 . 6 1 3 2 2 1 Terminals 13 | . 1 . 1 . . . 5 1 1 2 1 1 Fabricators 1 | . . . . . . . . . 1 . . . Repair Stations . | . . . . . . . . . . . . . Recycling Units . | . . . . . . . . . . . . . Scanalyzers . | . . . . . . . . . . . . . Garrison Access 3 | . . . . . . . 1 . 1 . 1 . Total Hacks 36 | . 3 . 2 . 1 . 13 2 6 3 4 2 Successful 19 | . 2 . 1 . 1 . 7 . 2 2 3 1 Failed 17 | . 1 . 1 . . . 6 2 4 1 1 1 Catastrophic 5 | . . . . . . . 3 1 . 1 . . Database Lockouts . | . . . . . . . . . . . . . Manual 25 | . 4 . . . 1 . 12 . 5 1 2 . Terminals 29 | . 3 . 2 . . . 12 2 3 3 2 2 Fabricators 1 | . . . . . . . . . 1 . . . Repair Stations . | . . . . . . . . . . . . . Recycling Units . | . . . . . . . . . . . . . Scanalyzers . | . . . . . . . . . . . . . Garrison Access 5 | . . . . . . . 1 . 2 . 2 . Terminal Hacks 11 | . 2 . 1 . 1 . 3 . . 2 1 1 Robot Analysis 1 | . 1 . . . . . . . . . . . Open Door 1 | . . . . . . . . . . 1 . . Branch Access Points 2 | . 1 . 1 . . . . . . . . . Emergency Access Points 1 | . . . . . . . . . . 1 . . Terminal Index 1 | . . . . . . . 1 . . . . . Registered Components 1 | . . . . . . . . . . . 1 . Zone Layout 2 | . . . . . . . 2 . . . . . Garrison Registry 1 | . . . . . . . . . . . . 1 EX-Prototype ID Bank 1 | . . . . . 1 . . . . . . . Fabricator Hacks . | . . . . . . . . . . . . . Repair Station Hacks . | . . . . . . . . . . . . . Recycling Unit Hacks . | . . . . . . . . . . . . . Scanalyzer . | . . . . . . . . . . . . . Garrison Access Hacks 3 | . . . . . . . 1 . 1 . 1 . Unlock Access 3 | . . . . . . . 1 . 1 . 1 . Unauthorized Hacks 5 | . . . . . . . 3 . 1 . 1 . Terminals 3 | . . . . . . . 3 . . . . . Botnet 3 | . . . . . . . 3 . . . . . Fabricators 1 | . . . . . . . . . 1 . . . Liberate 1 | . . . . . . . . . 1 . . . Repair Stations . | . . . . . . . . . . . . . Recycling Units . | . . . . . . . . . . . . . Scanalyzers . | . . . . . . . . . . . . . Garrison Access 1 | . . . . . . . . . . . 1 . Reprogram 1 | . . . . . . . . . . . 1 . Data Cores Recovered . | . . . . . . . . . . . . . Used . | . . . . . . . . . . . . . Hacking Detections 16 | . 1 . 1 . . . 6 1 3 1 2 1 Full Trace Events 1 | . . . . . . . . 1 . . . . Feedback Events . | . . . . . . . . . . . . . Feedback Blocked . | . . . . . . . . . . . . . Robot Schematics Acquired . | . . . . . . . . . . . . . Robots Built . | . . . . . . . . . . . . . Authchips . | . . . . . . . . . . . . . Time . | . . . . . . . . . . . . . Total Robot Build Rating . | . . . . . . . . . . . . . Part Schematics Acquired . | . . . . . . . . . . . . . Parts Built . | . . . . . . . . . . . . . Authchips . | . . . . . . . . . . . . . Time . | . . . . . . . . . . . . . Total Part Build Rating . | . . . . . . . . . . . . . Parts Repaired . | . . . . . . . . . . . . . Time . | . . . . . . . . . . . . . Parts Recycled . | . . . . . . . . . . . . . Recycled Matter . | . . . . . . . . . . . . . Retrieved Matter . | . . . . . . . . . . . . . Retrieved Components . | . . . . . . . . . . . . . Parts Scanalyzed . | . . . . . . . . . . . . . Part Schematics Acquired . | . . . . . . . . . . . . . Parts Damaged . | . . . . . . . . . . . . . Bothacking | -11 -10 -10 -9 -9 -9 -8 -8 -8 -7 -7 -7 -7 ------------ Run | Scr Mat Min Mat Min Exi Min Mat Gar Fac Gar Fac Gar Used RIF Installer 2 | . . . . . . . . 1 . 1 . . Coupler Efficiency 1 | . . . . . . . . . . 1 . . Robots Hacked 7 | . . . . . . . . . . 7 . . Non-combat . | . . . . . . . . . . . . . Combat 7 | . . . . . . . . . . 7 . . Robot Hacks Applied 7 | . . . . . . . . . . 7 . . overwrite_iff 3 | . . . . . . . . . . 3 . . formatsys_high 4 | . . . . . . . . . . 4 . . Relay Couplers Released 14 | . . . . . . . . . . 14 . . Machine Destruction 14 | . . . . . . . . . . 14 . . Attached 11 | . . . . . . . . . . 9 . 2 Fabnet Peak Effective % . | . . . . . . . . . . . . . Robots Rewired 3 | . . . . . . . . . . 3 . . Allies Hacked . | . . . . . . . . . . . . . Hacks Repelled . | . . . . . . . . . . . . . Allies | -11 -10 -10 -9 -9 -9 -8 -8 -8 -7 -7 -7 -7 -------- Run | Scr Mat Min Mat Min Exi Min Mat Gar Fac Gar Fac Gar Total Allies 10 | . . . . . . . . . . 10 . . Largest Group 3 | . . . . . . . . . . 3 2 . Highest-Rated Group 90 | . . . . . . . . . . 90 32 . Highest-Rated Ally 39 | . . . . . . . . . . 39 16 . Total Orders 2 | . . . . . . . . . . 2 . . STAY 1 | . . . . . . . . . . 1 . . FOLLOW 1 | . . . . . . . . . . 1 . . Ally Attacks 52 | . . . . . . . . . . 33 19 . Total Damage 611 | . . . . . . . . . . 417 194 . Kills 9 | . . . . . . . . . . 7 2 . Allies Corrupted . | . . . . . . . . . . . . . Allies Melted . | . . . . . . . . . . . . . Intel | -11 -10 -10 -9 -9 -9 -8 -8 -8 -7 -7 -7 -7 ------- Run | Scr Mat Min Mat Min Exi Min Mat Gar Fac Gar Fac Gar Robot Analysis Total 1 | . 1 . . . . . . . . . . . Derelict Logs Recovered 1 | . . . . 1 . . . . . . . . Drone Launches . | . . . . . . . . . . . . . Drone Recoveries . | . . . . . . . . . . . . . Exploration | -11 -10 -10 -9 -9 -9 -8 -8 -8 -7 -7 -7 -7 ------------- Run | Scr Mat Min Mat Min Exi Min Mat Gar Fac Gar Fac Gar Turns Passed 2556 | . 88 55 118 52 87 49 230 195 148 759 687 88 Spaces Moved 2566 | 1 67 39 104 131 213 123 414 200 347 398 474 55 Core 55 | . . . . . . . 41 3 . 11 . . Treads 2 | . . . . . . . . . . 2 . . Legs 984 | 1 67 39 40 . . . . 4 . 351 474 8 Wheels . | . . . . . . . . . . . . . Hover . | . . . . . . . . . . . . . Flight 1525 | . . . 64 131 213 123 373 193 347 34 . 47 Fastest Speed 32 | 120 120 120 37 37 40 40 35 35 37 37 120 32 Average Speed 70 | 120 120 120 68 38 40 40 38 38 37 113 123 47 Slowest Speed 200 | 120 120 120 120 40 40 40 50 120 37 200 130 130 Overloaded Moves 16 | . . . . . . . . . . . . 16 Propulsion Burnouts . | . . . . . . . . . . . . . Robots Hopped 4 | . . . . . . . 4 . . . . . Cave-ins Triggered . | . . . . . . . . . . . . . Exploration Rate (%) 30 | 1 27 12 13 53 61 44 53 35 10 46 19 20 Regions Visited 12 Branch Regions 4 Pre-discovered Areas . | . . . . . . . . . . . . . Known Exits Taken 5 | . 1 . 1 . . . 1 . 1 . 1 . Unknown Exits Taken 5 | 1 . 1 . 1 1 1 . . . . . . Scrap Searched 1 | . . . . 1 . . . . . . . . Spaces Dug 13 | . . . . . . . 7 3 3 . . . Terrain Destroyed 49 | . 7 22 . . . . 14 3 3 . . . Melee 6 | . . . . . . . . 3 3 . . . Projectile . | . . . . . . . . . . . . . AOE 43 | . 7 22 . . . . 14 . . . . . Terrain Rammed . | . . . . . . . . . . . . . Walls Destroyed . | . . . . . . . . . . . . . Machines Disabled . | . . . . . . . . . . . . . Actions | -11 -10 -10 -9 -9 -9 -8 -8 -8 -7 -7 -7 -7 --------- Run | Scr Mat Min Mat Min Exi Min Mat Gar Fac Gar Fac Gar Total 3109 | . 71 43 135 132 213 122 471 272 360 637 538 115 Wait 206 | . . . . . . . 49 . . 91 20 46 Move 2549 | . 66 38 103 130 212 122 407 199 346 397 474 55 Hop 3 | . . . . . . . 3 . . . . . Pick Up 30 | . 1 . 5 . . . 1 1 2 14 4 2 Fast Attach 37 | . . . 1 1 1 . 2 6 5 17 3 1 Attach 20 | . . . 1 . . . . 3 1 8 5 2 Detach 6 | . . . . . . . 1 2 . 2 1 . Swap 17 | . 2 2 2 . . . 1 1 . 5 4 . Drop 34 | . . . 6 1 . . . 2 3 11 4 7 Fire 74 | . 2 3 16 . . . 7 10 . 23 13 . Melee 68 | . . . . . . . . 18 3 36 9 2 Ram . | . . . . . . . . . . . . . Kick 2 | . . . 1 . . . . . . . 1 . Crush . | . . . . . . . . . . . . . Escape Stasis 60 | . . . . . . . . 30 . 30 . . Rewire 3 | . . . . . . . . . . 3 . . Trap . | . . . . . . . . . . . . . Miscellaneous . | . . . . . . . . . . . . . Route ------- -11/Scrapyard -10/Materials -10/Mines -9/Materials (discovered 2 exits: *Min x2) -9/Mines -9/Exiles -8/Mines -8/Materials (discovered 4 exits: *Fac x2 / [*Sto] / Gar) -8/Garrison (discovered 2 exits: *Fac / [*Mat]) -7/Factory -7/Garrison -7/Factory (discovered 2 exits: [*Fac] / Gar) -7/Garrison (discovered 4 exits: [Fac x3] / [Fac]) History --------- Turn | Location | Event 1 | -11/Scrapyard | Discovered new exit (range 0) 1 | -11/Scrapyard | Entered Materials 42 | -10/Materials | Identified exit to Mines 89 | -10/Materials | Entered Mines 103 | -10/Mines | Met a Derelict bent on vengeance 121 | -10/Mines | Discovered new exit (range 13) 144 | -10/Mines | Entered Materials 144 | -9/Materials | Evolved 2 slots: Utility x2 243 | -9/Materials | Identified exit to Mines 262 | -9/Materials | Entered Mines 309 | -9/Mines | Learned Materials emergency access door positions 313 | -9/Mines | Deemed a non-threat by the Exiles lab entrance 313 | -9/Mines | Discovered new exit (range 5) 314 | -9/Mines | Entered Exiles 324 | -9/Exiles | Build established: Mutant 325 | -9/Exiles | Met 8R-AWN 331 | -9/Exiles | Met EX-HEX 342 | -9/Exiles | Met EX-BIN 347 | -9/Exiles | Aligned with FarCom system 347 | -9/Exiles | Given EX-Vault access code 358 | -9/Exiles | Opened EX-Vault 361 | -9/Exiles | Found Modified TNC 371 | -9/Exiles | Warned to stay clear of 0b10 Research branches 382 | -9/Exiles | Met EX-DEC 397 | -9/Exiles | Discovered new exit (range 10) 401 | -9/Exiles | Left Exiles lab with Modified TNC 401 | -9/Exiles | Entered Mines 446 | -8/Mines | Discovered new exit (range 12) 450 | -8/Mines | Entered Materials 450 | -8/Materials | Evolved 2 slots: Utility x2 507 | -8/Materials | Discovered new exit (range 8) 630 | -8/Materials | Core integrity fell below 50% 634 | -8/Materials | Discovered new exit (range 15) 643 | -8/Materials | Discovered new exit (range 13) 680 | -8/Materials | Identified exit to Garrison 680 | -8/Materials | Entered Garrison 699 | -8/Garrison | Discovered new exit (range 5) 700 | -8/Garrison | Triggered checkpoint 716 | -8/Garrison | Core integrity fell below 20% 749 | -8/Garrison | Lost 3 parts (1u2w) 833 | -8/Garrison | Installed Relay Interface Framework 844 | -8/Garrison | Triggered checkpoint 871 | -8/Garrison | Discovered new exit (range 10) 875 | -8/Garrison | Entered Factory 875 | -7/Factory | Evolved 2 slots: Utility x2 1009 | -7/Factory | Identified exit to Garrison 1023 | -7/Factory | Entered Garrison 1036 | -7/Garrison | Triggered checkpoint 1095 | -7/Garrison | Garrison Relay disabled 1374 | -7/Garrison | Garrison Relay disabled 1412 | -7/Garrison | Build established: Bothacker-Mutant 1450 | -7/Garrison | Triggered checkpoint 1528 | -7/Garrison | Core integrity fell below 50% 1592 | -7/Garrison | Lost 10 parts (3n3u4w) 1708 | -7/Garrison | Expanded RIF knowledge: Coupler Efficiency 1720 | -7/Garrison | Triggered checkpoint 1740 | -7/Garrison | Garrison Relay disabled 1760 | -7/Garrison | Triggered checkpoint 1778 | -7/Garrison | Discovered new exit (range 5) 1782 | -7/Garrison | Entered Factory 1782 | -7/Factory | Accompanied by 2 allies 2072 | -7/Factory | Build established: Scavenger-Mutant 2264 | -7/Factory | Discovered new exit (range 9) 2326 | -7/Factory | Core integrity fell below 20% 2362 | -7/Factory | Lost 5 parts (1p2n1u1w) 2469 | -7/Factory | Identified exit to Garrison 2469 | -7/Factory | Entered Garrison 2480 | -7/Garrison | Discovered new exit (range 51) 2480 | -7/Garrison | Discovered new exit (range 72) 2480 | -7/Garrison | Discovered new exit (range 78) 2480 | -7/Garrison | Discovered new exit (range 92) 2557 | -7/Garrison | Destroyed by G-47 Trooper with Particle Gun Last Messages --------------- LOCATION=GARRISON GOAL=ESCAPE 02469_ Receiving FarCom transmissions... 02480_ Connecting with Garrison Terminal... 02480_ EXIT=FOUND >>Download(Registry) Retrieving Garrison registry... Downloaded map data. Downloaded component registry. Downloaded security status. 02480_ Dropped Imp. Titanium Leg. 02482_ Dropped Sml. Storage Unit. 02482_ Dropped Imp. Light Armor Plating. 02483_ Dropped Autogun. 02483_ Dropped Relay Coupler [NC]. 02485_ Acquired Relay Coupler [NC]. 02487_ Acquired Autogun. 02488_ Dropped Relay Coupler [NC]. 02490_ Acquired Relay Coupler [NC]. 02555_ Critical hit (Burn: +37). Map ----- +----------------------------------------------------+ | ??????????????# #+####!!# ##???#!!# #!!##"# #?? | | #####?????????# # #??##### #????##/# #/##### #?? | | #?????????# # #??????###????#!!+ +!!#??# #?? | | #??????#### # #?????????????#!!# #!!#??# #?? | | #??????#"## #+#?????????????#### ####### #?? | | ## #??????#" " " #????????????????#+##### " #?? | | ## #??????#" " " #????????????????# + " #?? | | #??????#" " " #????????????????# ##### "^^#?? | | ## #??????#"## ###????????????????# #???###^^#?? | | ?# #??????#### #????????????????###+####### ### | | ?# ########### ###########??????# | | ?# #####??# | | ?# + #??# | | ?############## ####+### ### #??# #######++### | | ??????????????# #??# #?# #?# #??# #?????# #?? | | ??????????????# #??# #?#^^#?# #??# #?????# #?? | | ??????????????# #??# #?# #?# #??# ####### #?? | | ??????????????# #### ### #?# #??# + #?? | | ??????????????# "s s Y + ###+#### ####### #?? | | ??????????????# ###s## # ## x ##s #?????# #?? | | ??????????????# #?# #### ## ## #?????# #?? | | ??????????????# ###s### s s ####### #?? | | ??????????????# g s + #?? | | ??????????????# gb + #?? | | ??????????????##+##T#### ## ## ##########?? | | ???????????????# ####### @ ## ## ###????????? | | ???????????????# ##### g " #????????? | | ???????????????# + " #????????? | | ???????????????#######g "x#????????? | | ?????????????????????#g " #????????? | | ?????????????????????### ## ## ###????????? | | ?????????????########### ## ## ##########?? | | ?????????????# #?? | | ?????????????# #?? | | ?????????????# ###+#### ###+### #?? | | ?????????????# #?# #??## ##""""## ##?# #?# #?? | | ?????????????# #?# #???# ## Y ## #??# ### #?? | | ???########### ### ##### ######## #??# + #?? | | ???# + + #??????# #### ### #?? | | ?### ######### ##### ### #??????# + #?#^^#?? | | ?# " #########^^#???# #?# #??????# #### #?# #?? | | ?# " + ##^ #####+### #??????# #??# #?# #?? | | ?# " ###### ##^ #??????# ####+### ### | | ?### #????# ##^^ #??????# ^^ | | ???# #????# ##^^############??????# ^^ | | ???# #????# ## #?????????????????####### ######## | | #### ###### ## #???????????????????????# ######## | | + + #???????????????????????# ## | | ###### ##### #???????????????????????# ## ##### | | ????#"""""#??# #???????????????????????# ## #???# | +----------------------------------------------------+ Best States ------------- Heat Dissipation 48 Energy Generation 18 Energy Capacity 310 Matter Stores 300 Matter Capacity 300 Sight Range 16 Terrain Scan Density 185 Armor Coverage 150 Evasion (%) 63 Targeting Accuracy 18 Recoil Reduction 1 Offensive Hacking 10 Relay Coupler Types 4 Relay Coupler Value 153 Item Schematics ----------------- None Robot Schematics ------------------ None Fabricated ------------ Nothing Alien Tech Used ----------------- None Achievements -------------- None Challenges ------------ None Game ------ Seed HeavyHellfireAnalyzer Manual? 0 Play Time 00:40:00 Cumulative 261.5 hours Start 2022.07.29 @ 10:06:00 End 2022.07.30 @ 11:34:52 Sessions 3 Manual Loads 0 Difficulty Rogue Special Mode None Game No. 311 Rogue 311 Adventurer 0 Explorer 0 Win Type - Total 11 Types 8/0/2/1/0/0/0/0/0 Lore% 70 Gallery% 87 Achievement% 74 Wizard Run 0 Options --------- ASCII 0 Keyboard 0 Movement Numpad Keybinds 0 Fullscreen 1 Font 18/Terminus Map View 76x50 Tactical HUD 1 Map Filters NONE Filters NONE Steam 1 RUN: f51b8755-ced5-47c7-b7f8-50c176605748